bitfinex-derivatives/quotes_SOLF0:USTF0_20250425
["timestamp","ask_amount","ask_price","bid_price","bid_amount"]
[1745612647842,6.6199,150.94,150.91,6.6206]
[1745612648140,6.6194,150.95,150.87,17.67810508]
[1745612648540,6.6194,150.95,150.91,6.6206]
[1745612649039,6.6194,150.95,150.87,17.67810508]
[1745612649336,6.6194,150.95,150.92,6.6205]
[1745612651440,6.6202,150.93,150.9,6.6214]
[1745612651644,17.67810508,150.94,150.85,21.65260508]
[1745612652243,6.6208,150.92,150.89,6.6217]
[1745612652542,25.42,150.93,150.85,21.65260508]
[1745612652742,6.6212,150.91,150.88,6.622]
[1745612652945,17.67810508,150.89,150.83,55.42758515]
[1745612653144,17.67810508,150.84,150.8,311.9581659]
[1745612653343,25.42,150.83,150.8,311.9581659]
[1745612655344,25.42,150.83,150.8,318.5837659]
[1745612655845,25.42,150.83,150.8,311.9581659]
[1745612657644,25.42,150.83,150.8,318.5839659]
[1745612657847,25.42,150.83,150.8,311.9581659]
[1745612659244,6.6238,150.85,150.8,311.9581659]
[1745612659551,6.6238,150.85,150.8,318.5839659]
[1745612659744,6.6238,150.85,150.8,311.9581659]
[1745612660345,25.42,150.86,150.8,311.9581659]
[1745612661243,32.0432,150.86,150.8,311.9581659]
[1745612661449,25.42,150.86,150.8,311.9581659]
[1745612661750,32.0433,150.86,150.82,6.6247]
[1745612661945,32.0433,150.86,150.8,311.9581659]
[1745612662147,25.42,150.86,150.8,311.9581659]
[1745612662346,32.0432,150.86,150.8,311.9581659]
[1745612662651,25.42,150.86,150.8,311.9581659]
[1745612662848,32.0433,150.86,150.82,6.6246]
[1745612664551,32.0433,150.86,150.83,6.6245]
[1745612665653,32.0433,150.86,150.8,311.9581659]
[1745612665654,32.0433,150.86,150.82,6.6248]
[1745612665952,25.42,150.86,150.8,311.9581659]
[1745612666452,6.6237,150.85,150.82,6.6249]
[1745612667254,6.6237,150.85,150.81,6.6252]
[1745612667450,3.14292267,150.94,150.82,28.32766604]
[1745612667451,26.57392267,150.94,150.82,28.32766604]
[1745612667752,25.42,150.94,150.89,6.6215]
[1745612667953,32.0399,150.94,150.89,6.6215]
[1745612668156,25.42,150.94,150.86,25.42]
[1745612668352,25.42,150.94,150.88,28.32766604]
[1745612668552,25.42,150.94,150.92,6.6202]
[1745612669255,25.42,150.94,150.91,6.6209]
[1745612670453,32.04,150.94,150.91,0.3545]
[1745612670672,28.32766604,150.92,150.8,311.9581659]
[1745612670854,28.32766604,150.88,150.8,313.9864659]
[1745612671055,25.42,150.87,150.8,313.9864659]
[1745612671256,25.42,150.87,150.81,6.6252]
[1745612671953,25.42,150.87,150.82,6.6249]
[1745612672153,25.42,150.87,150.8,315.9487659]
[1745612672354,28.32766604,150.88,150.8,315.9487659]
[1745612672653,6.6229,150.87,150.8,315.9487659]
[1745612673355,6.6229,150.87,150.81,6.6252]
[1745612673553,6.6233,150.86,150.81,6.6252]
[1745612676156,6.6236,150.85,150.81,6.6252]
[1745612677056,28.32766604,150.88,150.8,315.9487659]
[1745612677655,6.6244,150.84,150.8,315.9487659]
[1745612678457,6.6244,150.84,150.8,322.5744659]
[1745612678659,6.6245,150.83,150.8,315.9487659]
[1745612678855,28.32766604,150.88,150.8,322.5742659]
[1745612679055,28.32766604,150.88,150.8,315.9487659]
[1745612679358,28.32766604,150.88,150.81,6.6252]
[1745612681061,28.32766604,150.88,150.8,313.9864659]
[1745612681262,17.7036015,150.87,150.8,313.9864659]
[1745612681564,6.624,150.85,150.81,6.6252]
[1745612681762,17.7036015,150.87,150.8,313.9864659]
[1745612682162,6.6244,150.84,150.81,6.6254]
[1745612682962,43.1236015,150.89,150.83,6.6244]
[1745612683263,43.1236015,150.89,150.8,313.9864659]
[1745612683566,6.6236,150.86,150.82,6.6248]
[1745612684064,6.623,150.87,150.8,313.9864659]
[1745612684269,43.1236015,150.89,150.8,313.9864659]
[1745612684968,6.6226,150.88,150.84,6.6238]
[1745612685868,6.6228,150.87,150.84,6.6238]
[1745612687769,25.42,150.89,150.81,45.1436015]
[1745612688271,32.0421,150.89,150.86,6.6229]
[1745612688466,32.0421,150.89,150.81,45.1436015]
[1745612689270,32.0421,150.89,150.87,6.6227]
[1745612689467,32.0421,150.89,150.81,45.1436015]
[1745612689770,32.0421,150.89,150.86,6.6229]
[1745612690075,32.0421,150.89,150.81,45.1436015]
[1745612690575,25.42,150.89,150.87,6.6227]
[1745612693477,25.42,150.89,150.81,45.1436015]
[1745612694076,25.42,150.89,150.88,6.6223]
[1745612694577,6.6214,150.91,150.88,6.6223]
[1745612694780,6.6216,150.9,150.88,6.6223]
[1745612694976,19.84,150.87,150.8,305.0569659]
[1745612695177,17.7036015,150.83,150.79,311.9581659]
[1745612695377,32.0253,150.82,150.79,311.9581659]
[1745612695583,25.4,150.81,150.79,311.9581659]
[1745612695783,3.2221358,150.8,150.79,311.9581659]
[1745612700088,3.28849334,150.8,150.79,311.9581659]
[1745612701087,9.91429334,150.8,150.79,311.9581659]
[1745612701486,3.28849334,150.8,150.79,311.9581659]
[1745612701887,9.91429334,150.8,150.79,311.9581659]
[1745612706797,9.90884162,150.8,150.79,311.9581659]
[1745612707891,38.24775844,150.8,150.79,311.9581659]
[1745612710496,3.28304162,150.8,150.79,311.9581659]
[1745612712299,3.27663979,150.8,150.79,311.9581659]
[1745612714404,3.27776953,150.83,150.79,311.9581659]
[1745612714799,6.6237,150.85,150.8,6.6256]
[1745612715103,6.6237,150.85,150.79,311.9581659]
[1745612715503,6.6234,150.86,150.82,6.6249]
[1745612715699,6.6234,150.86,150.79,311.9581659]
[1745612715900,25.4,150.87,150.79,311.9581659]
[1745612716303,6.6238,150.85,150.81,6.6251]
[1745612716705,6.6238,150.85,150.82,6.6249]
[1745612717004,6.6233,150.86,150.82,6.6249]
[1745612717707,6.6236,150.85,150.82,6.6249]
[1745612718006,6.6236,150.85,150.81,6.6253]
[1745612718309,6.6236,150.85,150.79,311.9581659]
[1745612718498,6.6236,150.85,150.82,6.6247]
[1745612719308,6.6234,150.86,150.83,6.6245]
[1745612720608,6.6236,150.85,150.82,6.6248]
[1745612721909,6.6234,150.86,150.82,6.6248]
[1745612722607,6.6234,150.86,150.83,6.6245]
[1745612723906,25.4,150.87,150.8,17.69965144]
[1745612724416,25.4,150.87,150.85,6.6234]
[1745612725414,25.4,150.87,150.8,17.69965144]
[1745612725911,25.4,150.87,150.82,6.6249]
[1745612726116,25.4,150.87,150.8,17.69965144]
[1745612726317,3.17997562,150.86,150.82,17.69965144]
[1745612726519,3.17997562,150.85,150.84,6.6237]
[1745612726713,3.17997562,150.86,150.84,6.6237]
[1745612727019,3.17950209,150.85,150.82,17.69965144]
[1745612727315,3.17950209,150.86,150.83,2.0745]
[1745612728221,3.17950209,150.86,150.83,3.998]
[1745612728721,3.17950209,150.86,150.85,6.6236]
[1745612729121,3.17950209,150.86,150.83,3.998]
[1745612729322,3.17950209,150.86,150.84,6.6237]
[1745612730023,9.80280209,150.86,150.84,6.6237]
[1745612731224,3.17950209,150.86,150.84,6.6237]
[1745612731627,3.17950209,150.86,150.85,6.6236]
[1745612733428,3.17950209,150.88,150.86,6.6228]
[1745612733626,3.17950209,150.87,150.86,6.6228]
[1745612733819,3.17950209,150.88,150.83,5.9274]
[1745612734023,3.17950209,150.87,150.86,6.6229]
[1745612734222,3.17950209,150.88,150.86,6.6229]
[1745612734426,3.17950209,150.87,150.86,6.6229]
[1745612734621,3.17950209,150.88,150.86,6.6229]
[1745612734828,3.17950209,150.87,150.86,6.6229]
[1745612735027,3.17950209,150.88,150.86,6.6229]
[1745612735232,3.17950209,150.87,150.86,6.6229]
[1745612735428,3.17950209,150.88,150.86,6.6229]
[1745612735733,3.17950209,150.87,150.86,6.6229]
[1745612737531,0.03290209,150.87,150.86,6.6229]
[1745612737832,25.42,150.93,150.86,17.69965144]
[1745612738232,6.6206,150.92,150.89,6.6215]
[1745612740132,6.6206,150.92,150.9,6.6214]
[1745612740431,6.6206,150.92,150.89,6.6216]
[1745612740927,32.0403,150.93,150.88,11.31937701]
[1745612741130,36.73937701,150.93,150.9,6.6214]
[1745612741634,43.35967701,150.93,150.9,6.6214]
[1745612743236,36.73937701,150.93,150.91,6.621]
[1745612743431,36.73937701,150.93,150.9,11.31937701]
[1745612743637,25.42,150.93,150.9,11.31937701]
[1745612743830,25.42,150.93,150.92,6.6205]
[1745612744236,11.31937701,150.95,150.9,11.31937701]
[1745612744539,11.31937701,150.95,150.93,6.62]
[1745612744836,513.87937701,150.96,150.92,11.31937701]
[1745612745737,520.49847701,150.96,150.92,17.93967701]
[1745612746332,6.6193,150.95,150.92,11.31937701]
[1745612746538,36.73937701,150.96,150.92,11.31937701]
[1745612747333,36.73937701,150.96,150.92,17.93967701]
[1745612747831,43.35847701,150.96,150.92,11.31937701]
[1745612748532,32.0391,150.96,150.93,6.6201]
[1745612748736,25.42,150.96,150.93,6.6201]
[1745612749339,6.6193,150.95,150.93,6.6201]
[1745612749640,9.63704344,150.95,150.93,6.6201]
[1745612750139,9.63704344,150.95,150.92,17.93977701]
[1745612750341,6.6197,150.94,150.91,11.31937701]
[1745612750541,17.93907701,150.94,150.9,11.31937701]
[1745612751040,17.93907701,150.94,150.91,6.6208]
[1745612751341,17.93907701,150.94,150.9,11.31937701]
[1745612751541,6.6194,150.95,150.92,6.6203]
[1745612751737,9.63627579,150.95,150.92,6.6203]
[1745612751938,9.63627579,150.95,150.92,11.31937701]
[1745612752242,3.01687579,150.95,150.93,6.6198]
[1745612752540,3.01687579,150.95,150.92,11.31937701]
[1745612753242,24.82,150.99,150.94,11.31937701]
[1745612753441,3.01880295,150.98,150.94,11.31937701]
[1745612753839,3.01880295,150.98,150.96,6.6186]
[1745612754040,31.4376,150.99,150.96,11.31937701]
[1745612754242,24.82,150.99,150.96,11.31937701]
[1745612754540,24.82,150.99,150.97,6.6181]
[1745612754840,24.82,150.99,150.96,11.31937701]
[1745612755447,24.82,150.99,150.98,6.6179]
[1745612755743,27.84042841,150.99,150.98,6.6179]
[1745612759745,24.82,150.99,150.98,6.6179]
[1745612759946,27.83892131,150.99,150.98,6.6179]
[1745612760145,27.83892131,150.99,150.93,1.8956]
[1745612760347,24.82,150.99,150.94,11.31937701]
[1745612760548,3.01853121,150.98,150.94,11.31937701]
[1745612761148,14.33790822,150.98,150.94,11.31937701]
[1745612761352,11.31937701,150.98,150.95,6.6191]
[1745612761550,11.31937701,150.98,150.94,11.31937701]
[1745612761951,11.31937701,150.98,150.95,6.6188]
[1745612762349,17.93727701,150.98,150.94,11.31937701]
[1745612762546,17.93727701,150.98,150.96,6.6184]
[1745612762547,11.31937701,150.98,150.96,6.6184]
[1745612762852,17.93727701,150.98,150.96,6.6184]
[1745612763048,3.01786398,150.97,150.91,13.32977701]
[1745612763251,11.31937701,150.96,150.91,13.32977701]
[1745612763553,17.93837701,150.96,150.94,6.6196]
[1745612763954,11.31937701,150.96,150.94,6.6196]
[1745612764957,17.93827701,150.96,150.94,6.6196]
[1745612766555,11.31937701,150.96,150.94,6.6196]
[1745612766751,6.6187,150.97,150.94,6.6196]
[1745612767054,9.63774823,150.97,150.94,6.6196]
[1745612769356,6.619,150.96,150.93,6.62]
[1745612769556,17.93837701,150.96,150.93,6.62]
[1745612773159,3.02506541,150.95,150.93,6.62]
[1745612773554,17.93837701,150.96,150.93,6.62]
[1745612773754,11.31937701,150.98,150.92,11.31937701]
[1745612773958,3.02550672,150.97,150.92,11.31937701]
[1745612774258,3.02550672,150.97,150.94,6.6193]
[1745612774861,3.02550672,150.97,150.95,6.6191]
[1745612775261,3.02550672,150.97,150.92,11.31937701]
[1745612775559,3.02550672,150.97,150.94,11.31937701]
[1745612775961,3.02550672,150.97,150.96,6.6188]
[1745612776259,3.02737912,150.98,150.94,11.31937701]
[1745612776560,9.64537912,150.98,150.95,6.619]
[1745612778164,3.02737912,150.97,150.95,6.619]
[1745612779064,3.02737912,150.97,150.96,6.6188]
[1745612780165,3.02737912,150.98,150.97,6.6184]
[1745612780567,3.02737912,151.01,150.96,11.31937701]
[1745612780766,3.02737912,151.0,150.96,11.31937701]
[1745612780967,42.33577701,151.02,150.99,6.6173]
[1745612781267,3.0344779,151.01,150.99,6.6173]
[1745612781567,3.03580937,151.0,150.98,6.6177]
[1745612781759,3.0358011,150.99,150.98,6.6177]
[1745612784272,3.0358011,150.99,150.98,17.93707701]
[1745612785876,24.4,151.02,151.0,6.617]
[1745612786072,3.03923493,151.01,151.0,6.617]
[1745612786372,3.03923493,151.01,150.99,6.6171]
[1745612786671,3.03923493,151.0,150.99,6.6171]
[1745612789075,24.4,151.02,150.99,6.6171]
[1745612789374,9.65697569,151.01,150.99,6.6171]
[1745612789574,3.04037569,151.0,150.99,6.6171]
[1745612790769,17.1414,151.09,150.98,35.71937701]
[1745612790770,35.71937701,151.09,150.98,35.71937701]
[1745612791074,24.4,151.09,151.05,11.31937701]
[1745612791274,24.4,151.09,151.06,6.6143]
[1745612791674,24.4,151.09,151.05,11.31937701]
[1745612792377,24.4,151.09,151.07,6.6137]
[1745612793475,24.4,151.09,151.06,6.6143]
[1745612794476,24.4,151.09,151.07,6.6139]
[1745612796276,6.6127,151.1,151.07,6.6139]
[1745612800276,6.6127,151.1,151.07,17.93327701]
[1745612800475,6.6127,151.1,151.07,6.6139]
[1745612800981,6.6127,151.1,151.06,17.93357701]
[1745612801184,6.6127,151.1,151.06,11.31937701]
[1745612802282,6.6127,151.1,151.07,6.6139]
[1745612802582,6.6127,151.1,151.06,11.31937701]
[1745612802782,9.54170361,151.1,151.07,11.31937701]
[1745612803779,6.6135,151.08,151.06,11.31937701]
[1745612803979,6.6135,151.08,151.05,11.31937701]
[1745612804684,6.6135,151.08,151.05,17.93397701]
[1745612804878,6.6133,151.09,151.05,11.31937701]
[1745612805084,6.6133,151.09,151.06,11.31937701]
[1745612805379,9.54003028,151.1,151.06,17.93347701]
[1745612805790,2.92713028,151.1,151.07,11.31937701]
[1745612805987,2.92713028,151.11,151.07,11.31937701]
[1745612806490,2.92713028,151.11,151.08,6.6133]
[1745612806991,2.92713028,151.11,151.09,11.31937701]
[1745612807186,2.92618266,151.11,151.09,11.31937701]
[1745612807589,24.4,151.12,151.1,17.93197701]
[1745612807894,24.4,151.12,151.1,11.31937701]
[1745612808594,31.0118,151.12,151.1,11.31937701]
[1745612809290,24.4,151.12,151.1,11.31937701]
[1745612810195,24.4,151.12,151.1,17.93187701]
[1745612811392,31.012,151.12,151.1,11.31937701]
[1745612812393,6.6122,151.11,151.1,11.31937701]
[1745612813296,11.31937701,151.11,151.04,2.0339]
[1745612813595,11.31937701,151.07,151.04,2.0339]
[1745612813995,6.6146,151.06,151.04,2.0339]
[1745612814399,11.31937701,151.07,151.02,11.31937701]
[1745612814797,6.6151,151.05,151.02,11.31937701]
[1745612815298,6.6154,151.04,151.02,11.31937701]
[1745612816194,6.6154,151.04,151.01,6.6164]
[1745612816399,2.92557627,151.06,150.98,11.31937701]
[1745612816697,11.31937701,151.05,151.0,11.31937701]
[1745612816897,26.98557627,151.04,151.0,11.31937701]
[1745612817099,24.06,151.04,151.0,11.31937701]
[1745612818298,6.6158,151.03,151.0,11.31937701]
[1745612818491,9.54366232,151.03,151.0,11.31937701]
[1745612819293,2.92786232,151.03,151.0,11.31937701]
[1745612819700,30.6754,151.04,151.0,11.31937701]
[1745612819895,24.06,151.04,151.02,11.31937701]
[1745612820297,35.37937701,151.07,151.02,11.31937701]
[1745612820495,2.92959071,151.06,151.02,11.31937701]
[1745612820799,9.54429071,151.06,151.03,6.6154]
[1745612821001,6.6147,151.06,151.03,6.6154]
[1745612821694,9.54537427,151.06,151.03,6.6154]
[1745612821898,9.54537427,151.06,151.02,17.93537701]
[1745612822099,6.6147,151.06,151.02,17.93537701]
[1745612822398,9.54634931,151.06,151.02,17.93537701]
[1745612822699,6.6149,151.05,151.02,17.93537701]
[1745612823295,9.54624931,151.06,151.02,17.93537701]
[1745612823500,6.6146,151.06,151.03,6.6157]
[1745612823706,9.54571564,151.06,151.03,6.6157]
[1745612826304,2.93111564,151.06,151.04,6.6153]
[1745612826606,2.93111564,151.06,151.04,11.31937701]
[1745612827103,2.93111564,151.06,151.05,6.6148]
[1745612827405,2.93111564,151.08,151.05,6.6148]
[1745612828103,9.54471564,151.08,151.05,6.6148]
[1745612829203,2.93111564,151.07,151.05,6.6148]
[1745612829705,9.54511564,151.07,151.04,17.93447701]
[1745612829905,2.93111564,151.06,151.04,17.93447701]
[1745612830201,2.93111564,151.06,151.05,6.6146]
[1745612830407,2.93111564,151.07,151.05,6.6146]
[1745612830806,9.54511564,151.07,151.04,17.93447701]
[1745612831007,2.93111564,151.06,151.04,17.93447701]
[1745612831306,6.6146,151.06,151.04,11.31937701]
[1745612831703,9.54571564,151.06,151.04,11.31937701]
[1745612831899,2.93111564,151.05,151.04,11.31937701]
[1745612832206,2.93111564,151.06,151.04,17.93467701]
[1745612833508,14.25049265,151.05,150.92,1.1522988]
[1745612833704,11.31937701,150.95,150.89,11.31937701]
[1745612833903,2.93111564,150.94,150.91,11.31937701]
[1745612834213,2.93111564,150.96,150.91,11.31937701]
[1745612834509,9.55194831,150.96,150.91,11.31937701]
[1745612834707,2.93304831,150.96,150.91,11.31937701]
[1745612835409,2.93304831,150.96,150.93,11.31937701]
[1745612835912,2.93304831,150.98,150.93,11.31937701]
[1745612836911,9.55114831,150.98,150.93,11.31937701]
[1745612838811,6.6184,150.97,150.93,11.31937701]
[1745612840508,11.31937701,150.99,150.91,24.06]
[1745612840710,11.31937701,150.95,150.9,11.31937701]
[1745612841813,11.31937701,150.97,150.92,11.31937701]
[1745612842016,2.924364,150.96,150.92,11.31937701]
[1745612842309,11.31937701,150.97,150.92,11.31937701]
[1745612843714,11.31937701,150.97,150.89,2.0553]
[1745612843916,11.31937701,150.97,150.92,11.31937701]
[1745612845315,6.6199,150.94,150.92,11.31937701]
[1745612849813,6.6201,150.93,150.92,11.31937701]
[1745612852219,11.31937701,150.97,150.92,11.31937701]
[1745612853214,11.31937701,150.99,150.94,11.31937701]
[1745612853422,11.31937701,150.99,150.89,2.0553]
[1745612853720,11.31937701,150.99,150.94,11.31937701]
[1745612854420,6.6191,150.96,150.94,11.31937701]
[1745612856522,6.6192,150.95,150.94,11.31937701]
[1745612858123,2.92037575,150.98,150.94,11.31937701]
[1745612858325,24.06,151.0,150.96,11.31937701]
[1745612858824,6.6184,150.97,150.96,11.31937701]
[1745612859625,6.6189,150.96,150.94,11.31937701]
[1745612861828,6.6192,150.95,150.94,11.31937701]
[1745612866927,6.6189,150.96,150.94,11.31937701]
[1745612867129,2.92379031,150.98,150.94,11.31937701]
[1745612867629,2.92379031,150.99,150.94,11.31937701]
[1745612868227,6.6189,150.96,150.94,11.31937701]
[1745612869130,6.6192,150.95,150.94,11.31937701]
[1745612869728,6.619,150.96,150.94,11.31937701]
[1745612869928,2.92379031,150.99,150.94,11.31937701]
[1745612870732,11.31937701,150.98,150.92,35.91937701]
[1745612871027,2.92379031,150.97,150.92,11.31937701]
[1745612872529,6.6197,150.95,150.92,11.31937701]
[1745612873931,2.92379031,150.97,150.92,11.31937701]
[1745612874931,2.93274503,150.97,150.92,11.31937701]
[1745612875231,6.6197,150.94,150.92,11.31937701]
[1745612875423,2.93458195,150.93,150.9,11.31937701]
[1745612875627,2.93458195,150.95,150.9,11.31937701]
[1745612875824,11.31937701,150.96,150.9,11.31937701]
[1745612875825,14.25395896,150.94,150.9,11.31937701]
[1745612876126,6.6209,150.92,150.9,11.31937701]
[1745612876431,9.55548195,150.92,150.9,11.31937701]
[1745612876631,6.6209,150.92,150.9,11.31937701]
[1745612877326,2.9361627,150.91,150.9,11.31937701]
[1745612880833,9.5571627,150.91,150.9,11.31937701]
[1745612881433,6.621,150.91,150.9,11.31937701]
[1745612881830,6.6207,150.92,150.9,11.31937701]
[1745612882030,2.94176752,150.91,150.9,11.31937701]
[1745612884233,9.56276752,150.91,150.89,13.37467701]
[1745612884535,6.621,150.91,150.89,13.37467701]
[1745612885127,9.5621772,150.91,150.89,13.37467701]
[1745612885328,6.621,150.91,150.89,13.37467701]
[1745612885930,9.56211454,150.91,150.89,13.37467701]
[1745612886226,6.621,150.91,150.89,13.37467701]
[1745612886633,9.56192473,150.92,150.89,13.37467701]
[1745612886932,2.94122473,150.91,150.89,13.37467701]
[1745612887536,2.94122473,150.91,150.89,19.99637701]
[1745612888338,2.94100207,150.91,150.89,19.99637701]
[1745612888640,6.6207,150.92,150.89,19.99637701]
[1745612888835,2.94098772,150.91,150.89,19.99637701]
[1745612889036,6.6207,150.92,150.89,19.99637701]
[1745612889332,2.94089672,150.91,150.89,19.99637701]
[1745612891444,6.6207,150.92,150.89,19.99637701]
[1745612891644,6.6207,150.92,150.91,11.31937701]
[1745612891943,6.6202,150.93,150.91,11.31937701]
[1745612892245,2.94020133,150.92,150.91,11.31937701]
[1745612894150,2.94020133,150.92,150.91,17.94037701]
[1745612894350,2.94020133,150.93,150.91,17.94037701]
[1745612894649,2.94020133,150.93,150.91,11.31937701]
[1745612894849,2.94020133,150.96,150.91,11.31937701]
[1745612895056,2.94020133,150.95,150.91,11.31937701]
[1745612895251,2.94020133,150.94,150.91,11.31937701]
[1745612895552,9.56070133,150.93,150.91,11.31937701]
[1745612895746,6.6205,150.93,150.91,11.31937701]
[1745612896347,6.6205,150.92,150.91,11.31937701]
[1745612896744,9.5607884,150.92,150.91,11.31937701]
[1745612897253,6.6205,150.92,150.91,11.31937701]
[1745612898354,9.56143544,150.92,150.91,11.31937701]
[1745612898648,11.31937701,150.97,150.91,11.31937701]
[1745612898649,6.6203,150.93,150.91,11.31937701]
[1745612898855,2.94093544,150.92,150.91,11.31937701]
[1745612899452,2.9408012,150.92,150.91,11.31937701]
[1745612899857,2.9408012,150.92,150.91,35.61937701]
[1745612900049,2.9408012,150.92,150.91,42.24037701]
[1745612900457,2.94081894,150.92,150.91,42.24037701]
[1745612901158,2.94081894,150.92,150.91,35.61937701]
[1745612902256,2.94081894,150.92,150.91,11.31937701]
[1745612905056,9.56131894,150.92,150.91,11.31937701]
[1745612905262,2.94081894,150.92,150.91,17.94037701]
[1745612905462,2.94081894,150.96,150.91,17.94037701]
[1745612905650,6.6204,150.93,150.91,17.94037701]
[1745612905857,2.94081894,150.92,150.91,11.31937701]
[1745612906160,9.56131894,150.92,150.91,11.31937701]
[1745612906461,2.94081894,150.92,150.91,11.31937701]
[1745612907263,2.94081894,150.92,150.9,6.6212]
[1745612907470,6.6203,150.93,150.91,11.31937701]
[1745612907762,2.94264768,150.92,150.91,17.94037701]
[1745612908264,2.94264768,150.92,150.91,11.31937701]
[1745612910268,2.94264768,150.92,150.91,17.94037701]
[1745612916174,2.94264768,150.92,150.91,11.31937701]
[1745612916670,9.56314768,150.92,150.91,11.31937701]
[1745612916974,9.56314768,150.92,150.9,24.08]
[1745612917173,2.94264768,150.91,150.9,24.08]
[1745612917373,2.94264768,150.91,150.9,6.6213]
[1745612920267,2.94656625,150.91,150.89,35.39937701]
[1745612920466,11.31937701,150.97,150.89,35.39937701]
[1745612920671,9.56557173,150.96,150.92,11.31937701]
[1745612920871,2.94657173,150.95,150.93,6.6197]
[1745612921071,2.94657173,150.94,150.93,6.6197]
[1745612922673,2.9467084,150.94,150.93,6.6197]
[1745612924278,11.31937701,151.0,150.96,6.6185]
[1745612924479,2.94636335,150.99,150.96,6.6185]
[1745612924678,11.31937701,151.0,150.96,6.6185]
[1745612925077,6.6177,150.99,150.96,6.6185]
[1745612925478,6.6177,150.99,150.96,17.93787701]
[1745612925979,6.6173,151.0,150.96,11.31937701]
[1745612926675,6.6173,151.0,150.97,6.6181]
[1745612926879,6.6168,151.01,150.96,11.31937701]
[1745612927080,6.6168,151.01,150.98,11.31937701]
[1745612927883,6.6168,151.01,150.99,6.6174]
[1745612928175,24.08,151.03,150.98,11.31937701]
[1745612928373,24.08,151.03,150.99,6.6172]
[1745612928782,24.08,151.03,150.99,17.93657701]
[1745612929084,6.6163,151.02,150.99,17.93657701]
[1745612930083,6.6163,151.02,151.0,6.617]
[1745612930284,37.79837701,151.06,151.01,11.31937701]
[1745612930485,24.08,151.06,151.03,11.31937701]
[1745612930783,30.6946,151.06,151.03,17.93487701]
[1745612931084,24.08,151.06,151.03,17.93487701]
[1745612931284,17.93357701,151.07,151.04,6.6152]
[1745612935387,6.6144,151.06,151.03,17.93497701]
[1745612936289,9.45269796,151.06,151.03,17.93497701]
[1745612936888,2.83829796,151.06,151.04,6.6149]
[1745612937683,6.6142,151.07,151.04,6.6149]
[1745612939491,6.6142,151.07,151.04,17.93427701]
[1745612939987,6.6142,151.07,151.05,6.6148]
[1745612940188,9.44907922,151.08,151.05,6.6148]
[1745612940792,6.614,151.07,151.05,6.6148]
[1745612941090,6.614,151.07,151.04,17.93447701]
[1745612942093,9.44907922,151.08,151.05,6.6147]
[1745612942494,2.83537922,151.08,151.05,6.6148]
[1745612942695,2.83537922,151.08,151.04,11.31937701]
[1745612943594,9.44897922,151.08,151.04,11.31937701]
[1745612943891,9.44897922,151.08,151.02,4.6225]
[1745612943892,11.31937701,151.07,151.02,4.6225]
[1745612944195,6.6146,151.06,151.02,13.70627701]
[1745612944398,6.6146,151.06,151.03,6.6156]
[1745612944594,6.6146,151.06,151.02,13.70627701]
[1745612944896,17.93357701,151.07,151.04,6.6152]
[1745612945394,11.31937701,151.07,151.02,13.70627701]
[1745612945594,14.15314493,151.06,151.01,24.08]
[1745612945796,11.31937701,151.06,151.01,35.39937701]
[1745612946195,17.93397701,151.06,151.03,6.6157]
[1745612948097,17.93397701,151.06,151.03,17.93507701]
[1745612948292,19.89,151.3,151.05,11.31937701]
[1745612948493,5.18625897,151.29,151.23,11.31937701]
[1745612948698,5.18625897,151.29,151.25,11.31937701]
[1745612948892,2.3511,151.29,151.24,11.31937701]
[1745612949093,5.18625897,151.29,151.24,11.31937701]
[1745612949595,5.18625897,151.29,151.24,17.92557701]
[1745612949897,2.3511,151.29,151.24,17.92557701]
[1745612950299,2.3511,151.29,151.26,11.31937701]
[1745612951900,8.9557,151.29,151.26,11.31937701]
[1745612952994,11.31937701,151.28,151.21,23.88]
[1745612953198,11.31937701,151.28,151.23,11.31937701]
[1745612954302,6.6053,151.27,151.23,11.31937701]
[1745612955105,17.92427701,151.28,151.23,11.31937701]
[1745612956312,6.6053,151.27,151.23,11.31937701]
[1745612961015,6.6057,151.26,151.23,11.31937701]
[1745612963616,6.6063,151.25,151.23,11.31937701]
[1745612964517,6.6058,151.26,151.23,11.31937701]
[1745612965019,6.6061,151.25,151.23,11.31937701]
[1745612965414,11.31937701,151.28,151.24,11.31937701]
[1745612965618,11.31937701,151.28,151.23,11.31937701]
[1745612965820,11.31937701,151.27,151.22,11.31937701]
[1745612966019,6.6067,151.24,151.22,11.31937701]